{"text_format":"1","workbook":"xlsx","n_sheets":17,"sheets":["Instructivo","DEMANDA ANUAL","VOLUMEN DE QUEJAS","COSTO ADMINISTRACIÓN PÚBLICA","RESUMEN DE COSTOS AP","AUX CA 006-01-01","AUX CA 006-01-02","AUX CA 011-01-01","AUX CA 011-02-01","AUX CA 012-01-01","AUX CA 012-01-02","AUX CA 012-01-03","AUX CA 012-01-04","AUX CA 012-01-05","TIEMPO DE RESPUESTA","CANAL ATENCIÓN","RESUMEN"],"not_rendered":{"charts":0,"images":7,"macros":1,"external_links":0,"defined_names":1,"comments":5,"pivot_tables":0},"unopened":[],"bounds":{"document_bytes":16777216,"sheet_cells":100000,"rows_first":2000,"rows_last":500,"rows_between":2000,"halvings":0,"cell_chars":16384,"cell_head_chars":4096},"cells_cut":0,"cells_raw":0,"read":"whole","date_system":"1900"}

{"sheet":"Instructivo","index":0,"n_rows":70,"n_cols":1,"rows_kept":70,"cut":false,"hidden":false,"merged":[]}
["CRITERIO DE PRIORIZACIÓN DE TRÁMITES ADMINISTRATIVOS"]
["Instructivo"]
["Consideraciones generales"]
[]
["En las hojas “COSTO DE ADMINISTRACIÓN PÚBLICA”y “RESUMEN”  para añadir más trámites y que apliquen las fórmulas, se deberá seleccionar la primera fila y copiarla una por cada trámite de la entidad"]
[]
["Todas las hojas tienen columnas de color celeste, en las cuales NO deben ingresar valores ya que contienen fórmulas."]
["Para la carga en GOB.EC. La institución debe recordar que el peso máximo del archivo es de 2 MB."]
["Esquema de puntuación"]
["Para priorizar un trámite, se realizará un análisis de criterios básicos y adicionales basado en información que disponen las instituciones sujetas a esta norma técnica. Cada criterio será puntuado según los lineamientos presentes en esta norma."]
["a) Demanda Anual"]
["Considerará el volumen o frecuencia de las solicitudes que ingresan al año a cada institución para la gestión de un trámite en particular."]
["La identificación del volumen anual de los trámites se realizará a través de sus registros de transacciones y/o el número de visitas de consulta de información realizadas a través de páginas web institucionales."]
["Para realizar el registro realice lo siguiente:"]
["1.- Seleccione la hoja DEMANDA ANUAL"]
["2.- Ingrese los trámites de la institución registrando el identificador y nombre en las columnas respectivas.  "]
["3.- Para cada trámite debe especificar en la columna DEMANDA ANUAL el volumen o frecuencia anual, de acuerdo a lo mencionado anteriormente."]
["4.- Una vez terminado el llenado solicitado presione el botón PUNTUACIÓN, se ordenara de menor a mayor. "]
["5.- Usted visualizará el ordenamiento de los trámites ingresados de acuerdo al número de  volumen o frecuencia anual."]
["6.- Así mismo, usted visualizará el puntaje obtenido en la columna PUNTUACIÓN de acuerdo al grupo obtenido por cada trámite de acuerdo al número de volumen o frecuencia anual cosiderando lo siguiente: ** Primer grupo (trámites con menor demanda no incluye los trámites con demanda 0 ) = 3\n** Segundo grupo (trámites con demanda intermedia) = 6\n** Tercer grupo (trámites con mayor demanda) = 10"]
["Cada vez que requiera actualizar el puntaje presionando el botón puntuación, debe verificar que la celda de la columna puntaje se encuentren vacías, es decir, se debe borrar cualquier valor de puntaje obtenido previamente."]
["b) Volumen de quejas asociadas a un trámite: "]
["Considerará la cantidad de quejas recibidas en relación a un trámite durante un año. Estas quejas deberán estar documentadas en medios físicos y/o digitales."]
["Para determinar la puntuación, se colocará en una tabla todos los trámites con sus correspondientes quejas ordenándose de menor a mayor. Se dividirá en 2 partes en los que cada grupo contenga la misma cantidad de trámites."]
["Para realizar el registro realice lo siguiente:"]
["1.- Seleccione la hoja VOLUMEN DE QUEJAS"]
["2.- Ingrese los trámites de la institución registrando el identificador y nombre en las columnas respectivas.  Si usted requiere de acuerdo al número de trámites copie filas adicionales que estén dentro del cuadro"]
["3.- Para cada trámite debe especificar en la columna VOLUMEN QUEJAS el número de quejas anual, de acuerdo a lo mencionado anteriormente."]
["4.- Una vez terminado el llenado solicitado presione el botón PUNTUACIÓN."]
["5.- Usted visualizará el ordenamiento de los trámites ingresados de acuerdo al número de  volumen o frecuencia anual."]
["6.- Así mismo, usted visualizará el puntaje obtenido en la columna PUNTUACIÓN de acuerdo al grupo obtenido por cada trámite de acuerdo al número de volumen o frecuencia anual cosiderando lo siguiente: La puntuación se basará en los siguientes grupos:\n** Primer grupo (trámites con menor cantidad de quejas, no incluye los trámites con queja 0 ) = 4\n** Segundo grupo (trámites con mayor porcentaje de quejas) = 10"]
["El valor del volumen de quejas no debe ser superior al valor del volumen de la demana, no le permitirá registrar un valor."]
["c) Costo para la administración pública: "]
["En cada trámite, basado en un caso estándar, se deberá estimar el costo incurrido en el costo de personal y recursos necesarios para su atención desde que el administrado entregó todos los requisitos hasta que la institución entregue el producto, respuesta o servicio requerido en el trámite. Se considerará:"]
["• Costo de personal:"]
["Costo del personal para atender el trámite, se excluyen actividades realizadas automáticamente o que dependen del administrado. El tiempo deberá considerar únicamente el tiempo efectivo de trabajo del personal, no debe considerar el tiempo de espera o de movimiento."]
["• Costo de recursos:"]
["Se deberá considerar el costo directo en el que la institución debe incurrir para atender un trámite. Se debe considerar los insumos o materia prima necesaria u cualquier otro que la institución considere pertinente."]
["Para realizar el registro realice lo siguiente:"]
["1.- Seleccione la hoja COSTO ADMINISTRACIÓN PÚBLICA"]
["2.- Ingrese los trámites de la institución registrando el identificador y nombre en las columnas respectivas.  Si usted requiere de acuerdo al número de trámites copie filas adicionales que estén dentro del cuadro"]
["3.- Para calcular el tiempo de las actividades, utilizar la hoja AUXILIAR COSTO ADMINISTRACIÓN donde deberá listar todas las actividades que realiza la institución en un caso estándar y asignar el tiempo mínimo que toma cada actvidad (en horas). El tiempo total de las actividades, deberá ingresar en la correspondiente celda de la hoja COSTO ADMINISTRACIÓN PÚBLICA"]
["4.- En función de la información registrada en el paso 3, la matriz entregará el costo del personal"]
["5.- Completar la columna \"Costo recursos\", en la cual ingresará el costo directo en el que incurre la institución para entregar el trámite. En este valor se considerarán los valores correspondientes a insumos y/o materia prima mínimos que se invierten por cada trámite (no se considera mano de obra)"]
["6.- La columna \"Costo para la adm. pública\" mostrará el costto de este criterio para cada trámite"]
["7,- Para que la fórmula funcione debe arrastrar hacia abajo al último de los támites ingresados, no copiar"]
["7.- Una vez que disponga del Costo para la administración pública, presionar el botón \"GENERAR\"."]
["8. Visualizar la hoja “RESUMEN DE COSTO AP” en la que va a encontrar copiada las celdas necesarias para el ordenamiento y puntuación de las mismas al presionar el botón “PUNTUACIÓN”"]
[]
["d) Tiempo de respuesta: "]
["Considerará los tiempos que a las instituciones les toma dar respuesta a un trámite desde que reciben la solicitud del administrado hasta la finalización del mismo. Para la definición del tiempo se considerará un caso estándar."]
["Para determinar la puntuación, se colocará en una tabla todos los trámites con el tiempo de respuesta, ordenándose de menor a mayor. Se dividirá en 4 grupos, en los que cada uno contenga la misma cantidad de trámites."]
["Para realizar el registro realice lo siguiente:"]
["1.- Seleccione la hoja TIEMPO DE RESPUESTA"]
["2.- Ingrese los trámites de la institución registrando el identificador y nombre en las columnas respectivas.  Si usted requiere de acuerdo al número de trámites copie filas adicionales que estén dentro del cuadro"]
["3.- Para cada trámite debe especificar en la columna TIEMPO RESPUESTA el tiempo, de acuerdo a lo mencionado anteriormente."]
["4.- Una vez terminado el llenado solicitado presione el botón PUNTUACIÓN."]
["5.- Usted visualizará el ordenamiento de los trámites ingresados de acuerdo al número de  volumen o frecuencia anual."]
["6.- Así mismo, usted visualizará el puntaje obtenido en la columna PUNTUACIÓN de acuerdo al grupo obtenido por cada trámite de acuerdo al número de volumen o frecuencia anual cosiderando lo siguiente:  La puntuación considera lo siguiente:\n** Primer grupo (menor o igual a 40 horas laboralres) = 0\n** Segundo grupo mayor  40 horas laboralres) = 30"]
["e) Canal de atención: "]
["Considerará los canales de atención a través de los cuales el administrado puede iniciar el trámite."]
["Para realizar el registro realice lo siguiente:"]
["1.- Seleccione la hoja CANAL ATENCIÓN"]
["2.- Ingrese los trámites de la institución registrando el identificador y nombre en las columnas respectivas.  Si usted requiere de acuerdo al número de trámites copie filas adicionales que estén dentro del cuadro"]
["3.- Para cada trámite debe seleccionar el canal de atención del trámite en la columna CANAL ATENCIÓN, que pueden ser: \nEl trámite se puede completar totalmente en línea: Se considera trámite totalmente en línea cuando el administrado no requiere realizar ninguna interacción presencial con la institución = 0\nEl trámite no se puede completar totalmente en línea: Se considera este caso, cuando el trámite incluye al menos una actividad, incluido mecanismos de pago, en la que el administrado deba acudir presencialmente a la institución, para la realización de dicho trámite. Los trámites presenciales se consideran dentro de esta categoría = 10"]
["4.- De acuerdo a la selección usted obtendrá la puntuación del trámite que se visualizará en la columna PUNTUACIÓN."]
[]
["f) Resumen"]
["En esta hoja deberá consolidar todas las puntuaciones obtenidas para cada trámite en los criterios a) hasta e). Adicionalmente deberá analizar los criterios adicionales que dispone la norma técnica, para estos últimos solamente deberá seleccionar en la celda correspondiente y la matriz asignará la puntuación adicional. Los criterios que deberá considerar son:\n- NECESIDADES CIUDADANAS: Si la institución ha implementado mecanismos para identificar necesidades ciudadanas respecto al trámite, seleccionar \"SI\", caso contrario, seleccionar \"NO\"\n- SUSCEPTIBILIDAD A CORRUPCIÓN: Si la institución dispone de información documentada sobre presuntos actos de corrupción, seleccionar \"SI\", caso contrario, seleccionar \"NO\"\n- VOLUMEN DE DEVOLUCIONES: Si la institución posee documentación sobre devoluciones del trámite en una cantidad significativa, seleccionar \"SI\", caso contrario, seleccionar \"NO\"\nPara que funcione la lista depelgable debe arrastrar la lista y la puntuación hacia abajo al último de los támites ingresados, no copiar"]
["En la columna puntaje total se realizará la sumatoria de los valores de los criterios básicos y adicionales. Este valor deberá registrarse en la plataforma GOB.EC"]

{"sheet":"DEMANDA ANUAL","index":1,"n_rows":13,"n_cols":4,"rows_kept":13,"cut":false,"hidden":false,"merged":[[0,0,0,3],[1,0,1,3]]}
["PRIORIZACIÓN DE TRÁMITES ADMINISTRATIVOS"]
["DEMANDA ANUAL"]
[]
["IDENTIFICADOR","TRÁMITE","DEMANDA ANUAL","PUNTAJE"]
["INMOBILIAR-006-01-02","Solicitud de venta de cuota de participación estatal sobre bienes inmuebles y muebles en sucesiones intestadas",8,3]
["INMOBILIAR-006-01-01","Venta de cuota de participación estatal sobre bienes inmuebles en sucesiones intestadas",17,3]
["INMOBILIAR-012-01-05","Uso de Grúa",697,3]
["INMOBILIAR-011-02-01","Asignación de áreas deportivas",709,6]
["INMOBILIAR-011-01-01","Reservación de áreas para eventos, deportes y recreación",1230,6]
["INMOBILIAR-012-01-04","Venta de hielo",1885,6]
["INMOBILIAR-012-01-02","Fondeo de embarcaciones",5509,10]
["INMOBILIAR-012-01-01","Uso de muelle nodriza o muelle flotante",20853,10]
["INMOBILIAR-012-01-03","Renta de espacios por metro cuadrado",106498,10]

{"sheet":"VOLUMEN DE QUEJAS","index":2,"n_rows":13,"n_cols":6,"rows_kept":13,"cut":false,"hidden":false,"merged":[[0,0,0,5],[1,0,1,5]]}
["PRIORIZACIÓN DE TRÁMITES ADMINISTRATIVOS"]
["VOLUMEN DE QUEJAS"]
[]
["IDENTIFICADOR","TRÁMITE","VOLUMEN DEMANDA","VOLUMEN DE QUEJAS","PORCENTAJE","PUNTUACIÓN"]
["INMOBILIAR-006-01-02","Solicitud de venta de cuota de participación estatal sobre bienes inmuebles y muebles en sucesiones intestadas",8,0,0,0]
["INMOBILIAR-006-01-01","Venta de cuota de participación estatal sobre bienes inmuebles en sucesiones intestadas",17,0,0,0]
["INMOBILIAR-012-01-05","Uso de Grúa",697,0,0,0]
["INMOBILIAR-011-02-01","Asignación de áreas deportivas",709,0,0,0]
["INMOBILIAR-011-01-01","Reservación de áreas para eventos, deportes y recreación",1230,0,0,0]
["INMOBILIAR-012-01-04","Venta de hielo",1885,0,0,0]
["INMOBILIAR-012-01-02","Fondeo de embarcaciones",5509,0,0,0]
["INMOBILIAR-012-01-01","Uso de muelle nodriza o muelle flotante",20853,0,0,0]
["INMOBILIAR-012-01-03","Renta de espacios por metro cuadrado",106498,0,0,0]

{"sheet":"COSTO ADMINISTRACIÓN PÚBLICA","index":3,"n_rows":14,"n_cols":9,"rows_kept":14,"cut":false,"hidden":false,"merged":[[0,0,0,5],[1,0,1,5],[3,0,4,0],[3,1,4,1],[3,2,3,4],[3,5,4,5]]}
["PRIORIZACIÓN DE TRÁMITES ADMINISTRATIVOS"]
["COSTOS PARA LA ADMINISTRACIÓN PÚBLICA"]
[]
["IDENTIFICADOR","TRÁMITE","INSUMOS PARA COSTO",null,null,"COSTO PARA LA ADM. PÚBLICA",null,"SBU",400]
[null,null,"TIEMPO (HORAS)","COSTO PERSONAL","COSTO RECURSOS"]
["INMOBILIAR-006-01-02","Solicitud de venta de cuota de participación estatal sobre bienes inmuebles y muebles en sucesiones intestadas",{"$f":"+'AUX CA 006-01-02'!C29","v":49},{"$f":"C6*$I$4/160","v":122.5},{"$f":"+'AUX CA 006-01-02'!F7","v":711},{"$f":"D6+E6","v":833.5}]
["INMOBILIAR-006-01-01","Venta de cuota de participación estatal sobre bienes inmuebles en sucesiones intestadas",{"$f":"+'AUX CA 006-01-01'!C27","v":44},{"$f":"C7*$I$4/160","v":110},{"$f":"+'AUX CA 006-01-01'!F7","v":711},{"$f":"D7+E7","v":821}]
["INMOBILIAR-012-01-05","Uso de Grúa",{"$f":"+'AUX CA 012-01-05'!C10","v":0.16666666666666666},0.41666666666666663,{"$f":"+'AUX CA 012-01-05'!F7","v":3},3.4166666666666665]
["INMOBILIAR-011-02-01","Asignación de áreas deportivas",{"$f":"+'AUX CA 011-02-01'!C10","v":0.49999999999999994},1.2499999999999998,{"$f":"+'AUX CA 011-02-01'!F7","v":0.6},1.8499999999999996]
["INMOBILIAR-011-01-01","Reservación de áreas para eventos, deportes y recreación",{"$f":"+'AUX CA 011-01-01'!C10","v":0.71666666666666656},1.7916666666666665,{"$f":"+'AUX CA 011-01-01'!F7","v":0.5},2.2916666666666665]
["INMOBILIAR-012-01-04","Venta de hielo",{"$f":"+'AUX CA 012-01-04'!C8","v":0.15},0.375,{"$f":"+'AUX CA 012-01-04'!F7","v":3},3.375]
["INMOBILIAR-012-01-02","Fondeo de embarcaciones",{"$f":"+'AUX CA 012-01-02'!C10","v":0.16666666666666666},0.41666666666666663,{"$f":"+'AUX CA 012-01-02'!F7","v":3},3.4166666666666665]
["INMOBILIAR-012-01-01","Uso de muelle nodriza o muelle flotante",{"$f":"+'AUX CA 012-01-01'!C10","v":0.16666666666666666},0.41666666666666663,{"$f":"+'AUX CA 012-01-01'!F7","v":3},3.4166666666666665]
["INMOBILIAR-012-01-03","Renta de espacios por metro cuadrado",{"$f":"+'AUX CA 012-01-03'!C10","v":0.16666666666666666},0.41666666666666663,{"$f":"+'AUX CA 012-01-03'!F7","v":3},3.4166666666666665]

{"sheet":"RESUMEN DE COSTOS AP","index":4,"n_rows":13,"n_cols":4,"rows_kept":13,"cut":false,"hidden":false,"merged":[[0,0,0,5],[1,0,1,5]]}
["PRIORIZACIÓN DE TRÁMITES ADMINISTRATIVOS"]
["COSTOS PARA LA ADMINISTRACIÓN PÚBLICA"]
[]
["IDENTIFICADOR","TRÁMITE","COSTO PARA LA ADM. PÚBLICA","PUNTUACIÓN"]
["INMOBILIAR-011-02-01","Asignación de áreas deportivas",1.8499999999999996,5]
["INMOBILIAR-011-01-01","Reservación de áreas para eventos, deportes y recreación",2.2916666666666665,5]
["INMOBILIAR-012-01-04","Venta de hielo",3.375,5]
["INMOBILIAR-012-01-02","Fondeo de embarcaciones",3.4166666666666665,10]
["INMOBILIAR-012-01-03","Renta de espacios por metro cuadrado",3.4166666666666665,10]
["INMOBILIAR-012-01-05","Uso de Grúa",3.4166666666666665,10]
["INMOBILIAR-012-01-01","Uso de muelle nodriza o muelle flotante",3.4166666666666665,10]
["INMOBILIAR-006-01-01","Venta de cuota de participación estatal sobre bienes inmuebles en sucesiones intestadas",821,20]
["INMOBILIAR-006-01-02","Solicitud de venta de cuota de participación estatal sobre bienes inmuebles y muebles en sucesiones intestadas",833.5,20]

{"sheet":"AUX CA 006-01-01","index":5,"n_rows":27,"n_cols":6,"rows_kept":27,"cut":false,"hidden":false,"merged":[[1,1,1,2]]}
[]
["TRÁMITE:","INMOBILIAR-006-01-01 Venta de cuota de participación estatal sobre bienes inmuebles en sucesiones intestadas",null,null,"COSTO DE RECURSOS"]
["NO.","ACTIVIDAD","TIEMPO (HORAS)",null,"Impresiones",1]
[1,"Revisar y reasignar solicitud",0.2,null,"Computador",400]
[2,"Analizar y revisar requisitos y solicitud",4,null,"Internet",10]
[3,"Elaborar providencia de inicio y disponer diligencias",1,null,"Estación de Trabajo",300]
[4,"Elaborar oficios de disposición de diligencias (Procuraduría, Registro Civil, Dirección de Análisis y Uso de Bienes, Dirección de Catastro y Valoración de Bienes, Coordinación Zonal correspondiente)",1,null,"TOTAL",{"$f":"SUM(F3:F6)","v":711}]
[5,"Elaborar expediente",0.7]
[6,"Elaborar informe técnico correspondiente DAUB",8]
[7,"Elaborar informe técnico correspondiente DCVB",8]
[8,"Elaborar providencia de sustanciación del expediente administrativo",1]
[9,"Elaborar providencia de sustanciación del expediente administrativo",1]
[10,"Elaborar providencia disponiendo elaboración informe de cálculo",1]
[11,"Disponer elaboración de informe de cálculo",0.5]
[12,"Elaborar informe de cálculo de cuota estatal",4]
[13,"Validar previamente informe de cálculo de cuota estatal",2]
[14,"Elaborar memorando solicitando la validación del cálculo",0.5]
[15,"Validar informe de cálculo de cuota estatal",1]
[16,"Elaborar providencia (poniendo en conocimiento el cálculo)",1]
[17,"Elaborar escrito de aceptación o no del cálculo",1]
[18,"Elaborar providencia (incorporando la aceptación o no del cálculo)",1]
[19,"Elaborar memorando de solicitud de autorización de elaboración de Resolución de venta de cuota estatal",1]
[20,"Autorizar o no la elaboración de la Resolución de venta de cuota estatal",1]
[21,"Elaborar Resolución de venta de cuota estatal",4]
[22,"Suscribir Resolución de venta de cuota estatal",0.1]
[23,"Elaborar providencia de notificación al peticionario",1]
[null,"SUMATORIA ACTIVIDADES",{"$f":"SUM(C4:C26)","v":44}]

{"sheet":"AUX CA 006-01-02","index":6,"n_rows":29,"n_cols":6,"rows_kept":29,"cut":false,"hidden":false,"merged":[[1,1,1,2]]}
[]
["TRÁMITE:","INMOBILIAR-006-01-02 Solicitud de venta de cuota de participación estatal sobre bienes inmuebles y muebles en sucesiones intestadas",null,null,"COSTO DE RECURSOS"]
["NO.","ACTIVIDAD","TIEMPO (HORAS)",null,"Impresiones",1]
[1,"Revisar y reasignar solicitud",0.2,null,"Computador",400]
[2,"Analizar y revisar requisitos y solicitud",4,null,"Internet",10]
[3,"Elaborar providencia de inicio y disponer diligencias",1,null,"Estación de Trabajo",300]
[4,"Elaborar oficios de disposición de diligencias (Procuraduría, Registro Civil, Dirección de Análisis y Uso de Bienes, Dirección de Catastro y Valoración de Bienes, Coordinación Zonal correspondiente)",1,null,"TOTAL",{"$f":"SUM(F3:F6)","v":711}]
[5,"Elaborar expediente",0.7]
[6,"Elaborar informe técnico correspondiente DAUB",8]
[7,"Elaborar informe técnico correspondiente DCVB",8]
[8,"Elaborar providencia de sustanciación del expediente administrativo",1]
[9,"Elaborar providencia de sustanciación del expediente administrativo",1]
[10,"Elaborar providencia disponiendo elaboración informe de cálculo",1]
[11,"Disponer elaboración de informe de cálculo",0.5]
[12,"Elaborar informe de cálculo de cuota estatal",4]
[13,"Validar previamente informe de cálculo de cuota estatal",2]
[14,"Elaborar memorando solicitando la validación del cálculo",0.5]
[15,"Validar informe de cálculo de cuota estatal",1]
[16,"Solicitar validación del cálculo de cuota estatal de bienes muebles al MEF",1]
[17,"Validar en caso de bienes muebles el cálculo de cuota estatal",4]
[18,"Elaborar providencia (poniendo en conocimiento el cálculo)",1]
[19,"Elaborar escrito de aceptación o no del cálculo",1]
[20,"Elaborar providencia (incorporando la aceptación o no del cálculo)",1]
[21,"Elaborar memorando de solicitud de autorización de elaboración de Resolución de venta de cuota estatal",1]
[22,"Autorizar o no la elaboración de la Resolución de venta de cuota estatal",1]
[23,"Elaborar Resolución de venta de cuota estatal",4]
[24,"Suscribir Resolución de venta de cuota estatal",0.1]
[25,"Elaborar providencia de notificación al peticionario",1]
[null,"SUMATORIA ACTIVIDADES",{"$f":"SUM(C4:C28)","v":49}]

{"sheet":"AUX CA 011-01-01","index":7,"n_rows":10,"n_cols":6,"rows_kept":10,"cut":false,"hidden":false,"merged":[[1,1,1,2]]}
[]
["TRÁMITE:","INMOBILIAR-011-01-01 - Reservación de áreas para eventos, deportes y recreación",null,null,"COSTO DE RECURSOS"]
["NO.","ACTIVIDAD","TIEMPO (HORAS)",null,"Impresiones",0.3]
[1,"Verificar disponibilidad de áreas para eventos, deportes y recreación",{"$f":"5/60","v":8.3333333333333329E-2},null,"Facturación",0.1]
[2,"Asignar áreas para eventos, deportes y recreación",{"$f":"2/60","v":3.3333333333333333E-2},null,"Internet",0.1]
[3,"Verificar hora de inicio de utilización del recurso utilizado",{"$f":"10/60","v":0.16666666666666666}]
[4,"Verificar hora de fin de utilización del recurso utilizado",{"$f":"10/60","v":0.16666666666666666},null,"TOTAL",{"$f":"SUM(F3:F6)","v":0.5}]
[5,"Facturar por tiempo utilizado",{"$f":"10/60","v":0.16666666666666666}]
[6,"Entregar factura al ciudadano",{"$f":"1/10","v":0.1}]
[null,"SUMATORIA ACTIVIDADES",{"$f":"SUM(C4:C9)","v":0.71666666666666656}]

{"sheet":"AUX CA 011-02-01","index":8,"n_rows":10,"n_cols":6,"rows_kept":10,"cut":false,"hidden":false,"merged":[[1,1,1,2]]}
[]
["TRÁMITE:","INMOBILIAR-011-02-01 Asignación de áreas deportivas",null,null,"COSTO DE RECURSOS"]
["NO.","ACTIVIDAD","TIEMPO (HORAS)",null,"Impresiones",0.4]
[1,"Verificar disponibilidad de áreas deportivas",{"$f":"5/60","v":8.3333333333333329E-2},null,"Facturación",0.1]
[2,"Asignar áreas deportivas",{"$f":"2/60","v":3.3333333333333333E-2},null,"Internet",0.1]
[3,"Verificar hora de inicio de utilización del recurso utilizado",{"$f":"10/60","v":0.16666666666666666}]
[4,"Verificar hora de fin de utilización del recurso utilizado",{"$f":"2/60","v":3.3333333333333333E-2},null,"TOTAL",{"$f":"SUM(F3:F6)","v":0.6}]
[5,"Facturar por tiempo utilizado",{"$f":"10/60","v":0.16666666666666666}]
[6,"Entregar factura al ciudadano",{"$f":"1/60","v":1.6666666666666666E-2}]
[null,"SUMATORIA ACTIVIDADES",{"$f":"SUM(C4:C9)","v":0.49999999999999994}]

{"sheet":"AUX CA 012-01-01","index":9,"n_rows":10,"n_cols":6,"rows_kept":10,"cut":false,"hidden":false,"merged":[[1,1,1,2]]}
[]
["TRÁMITE:","INMOBILIAR-012-01-01 - Uso de muelle nodriza o muelle flotante",null,null,"COSTO DE RECURSOS"]
["NO.","ACTIVIDAD","TIEMPO (HORAS)",null,"Impresiones",0.5]
[1,"Verificar disponibilidad de muelle nodriza o muelle flotante",{"$f":"3/60","v":0.05},null,"Facturación",0.5]
[2,"Asignar muelle nodriza o muelle flotante",{"$f":"1/60","v":1.6666666666666666E-2},null,"Útiles de oficina",2]
[3,"Verificar hora de inicio de utilización del recurso utilizado",{"$f":"1/60","v":1.6666666666666666E-2}]
[4,"Verificar hora de fin de utilización del recurso utilizado",{"$f":"2/60","v":3.3333333333333333E-2},null,"TOTAL",{"$f":"SUM(F3:F6)","v":3}]
[5,"Facturar por tiempo utilizado",{"$f":"2/60","v":3.3333333333333333E-2}]
[6,"Entregar factura al ciudadano",{"$f":"1/60","v":1.6666666666666666E-2}]
[null,"SUMATORIA ACTIVIDADES",{"$f":"SUM(C4:C9)","v":0.16666666666666666}]

{"sheet":"AUX CA 012-01-02","index":10,"n_rows":10,"n_cols":6,"rows_kept":10,"cut":false,"hidden":false,"merged":[[1,1,1,2]]}
[]
["TRÁMITE:","INMOBILIAR-012-01-02 - Fondeo de embarcaciones",null,null,"COSTO DE RECURSOS"]
["NO.","ACTIVIDAD","TIEMPO (HORAS)",null,"Impresiones",0.5]
[1,"Verificar espacios disponibles para fondeo de embarcaciones",{"$f":"3/60","v":0.05},null,"Facturación",0.5]
[2,"Asignar espacio para fondeo de embarcaciones",{"$f":"1/60","v":1.6666666666666666E-2},null,"Útiles de oficina",2]
[3,"Verificar hora de inicio de utilización del recurso utilizado",{"$f":"1/60","v":1.6666666666666666E-2}]
[4,"Verificar hora de fin de utilización del recurso utilizado",{"$f":"2/60","v":3.3333333333333333E-2},null,"TOTAL",{"$f":"SUM(F3:F6)","v":3}]
[5,"Facturar por tiempo utilizado",{"$f":"2/60","v":3.3333333333333333E-2}]
[6,"Entregar factura al ciudadano",{"$f":"1/60","v":1.6666666666666666E-2}]
[null,"SUMATORIA ACTIVIDADES",{"$f":"SUM(C4:C9)","v":0.16666666666666666}]

{"sheet":"AUX CA 012-01-03","index":11,"n_rows":10,"n_cols":6,"rows_kept":10,"cut":false,"hidden":false,"merged":[[1,1,1,2]]}
[]
["TRÁMITE:","INMOBILIAR-012-01-03 - Renta de espacios por metro cuadrado",null,null,"COSTO DE RECURSOS"]
["NO.","ACTIVIDAD","TIEMPO (HORAS)",null,"Impresiones",0.5]
[1,"Verificar espacios disponibles para  Renta de espacios por metro cuadrado",{"$f":"3/60","v":0.05},null,"Facturación",0.5]
[2,"Asignar espacio para  Renta de espacios por metro cuadrado",{"$f":"1/60","v":1.6666666666666666E-2},null,"Útiles de oficina",2]
[3,"Verificar hora de inicio de utilización del recurso utilizado",{"$f":"1/60","v":1.6666666666666666E-2}]
[4,"Verificar hora de fin de utilización del recurso utilizado",{"$f":"2/60","v":3.3333333333333333E-2},null,"TOTAL",{"$f":"SUM(F3:F6)","v":3}]
[5,"Facturar por tiempo utilizado",{"$f":"2/60","v":3.3333333333333333E-2}]
[6,"Entregar factura al ciudadano",{"$f":"1/60","v":1.6666666666666666E-2}]
[null,"SUMATORIA ACTIVIDADES",{"$f":"SUM(C4:C9)","v":0.16666666666666666}]

{"sheet":"AUX CA 012-01-04","index":12,"n_rows":8,"n_cols":6,"rows_kept":8,"cut":false,"hidden":false,"merged":[[1,1,1,2]]}
[]
["TRÁMITE:","INMOBILIAR-012-01-04 - Venta de hielo",null,null,"COSTO DE RECURSOS"]
["NO.","ACTIVIDAD","TIEMPO (HORAS)",null,"Impresiones",0.5]
[1,"Verificar disponibilidad de hielo",{"$f":"1/60","v":1.6666666666666666E-2},null,"Facturación",0.5]
[2,"Entregar el hielo solicitado",{"$f":"5/60","v":8.3333333333333329E-2},null,"Útiles de oficina",2]
[3,"Facturar hielo",{"$f":"2/60","v":3.3333333333333333E-2}]
[4,"Entregar factura al ciudadano",{"$f":"1/60","v":1.6666666666666666E-2},null,"TOTAL",{"$f":"SUM(F3:F6)","v":3}]
[null,"SUMATORIA ACTIVIDADES",{"$f":"SUM(C4:C7)","v":0.15}]

{"sheet":"AUX CA 012-01-05","index":13,"n_rows":10,"n_cols":6,"rows_kept":10,"cut":false,"hidden":false,"merged":[[1,1,1,2]]}
[]
["TRÁMITE:","INMOBILIAR-012-01-05 - Uso de Grúa",null,null,"COSTO DE RECURSOS"]
["NO.","ACTIVIDAD","TIEMPO (HORAS)",null,"Impresiones",0.5]
[1,"Verificar grúas disponibles",{"$f":"3/60","v":0.05},null,"Facturación",0.5]
[2,"Asignar grúa",{"$f":"1/60","v":1.6666666666666666E-2},null,"Útiles de oficina",2]
[3,"Verificar hora de inicio de utilización del recurso utilizado",{"$f":"1/60","v":1.6666666666666666E-2}]
[4,"Verificar hora de fin de utilización del recurso utilizado",{"$f":"2/60","v":3.3333333333333333E-2},null,"TOTAL",{"$f":"SUM(F3:F6)","v":3}]
[5,"Facturar por tiempo utilizado",{"$f":"2/60","v":3.3333333333333333E-2}]
[6,"Entregar factura al ciudadano",{"$f":"1/60","v":1.6666666666666666E-2}]
[null,"SUMATORIA ACTIVIDADES",{"$f":"SUM(C4:C9)","v":0.16666666666666666}]

{"sheet":"TIEMPO DE RESPUESTA","index":14,"n_rows":13,"n_cols":4,"rows_kept":13,"cut":false,"hidden":false,"merged":[[0,0,0,3],[1,0,1,3]]}
["PRIORIZACIÓN DE TRÁMITES ADMINISTRATIVOS"]
["TIEMPO DE RESPUESTA"]
[]
["IDENTIFICADOR","TRÁMITE","TIEMPO RESPUESTA (horas laborables)","PUNTUACIÓN"]
["INMOBILIAR-006-01-02","Solicitud de venta de cuota de participación estatal sobre bienes inmuebles y muebles en sucesiones intestadas",904,30]
["INMOBILIAR-006-01-01","Venta de cuota de participación estatal sobre bienes inmuebles en sucesiones intestadas",856,30]
["INMOBILIAR-012-01-05","Uso de Grúa",{"$f":"13/60","v":0.21666666666666667},0]
["INMOBILIAR-011-02-01","Asignación de áreas deportivas",{"$f":"13/60","v":0.21666666666666667},0]
["INMOBILIAR-011-01-01","Reservación de áreas para eventos, deportes y recreación",{"$f":"13/60","v":0.21666666666666667},0]
["INMOBILIAR-012-01-04","Venta de hielo",{"$f":"10/60","v":0.16666666666666666},0]
["INMOBILIAR-012-01-02","Fondeo de embarcaciones",{"$f":"13/60","v":0.21666666666666667},0]
["INMOBILIAR-012-01-01","Uso de muelle nodriza o muelle flotante",{"$f":"13/60","v":0.21666666666666667},0]
["INMOBILIAR-012-01-03","Renta de espacios por metro cuadrado",{"$f":"13/60","v":0.21666666666666667},0]

{"sheet":"CANAL ATENCIÓN","index":15,"n_rows":13,"n_cols":12,"rows_kept":13,"cut":false,"hidden":false,"merged":[[0,0,0,3],[1,0,1,3]]}
["PRIORIZACIÓN DE TRÁMITES ADMINISTRATIVOS"]
["CANAL DE ATENCIÓN"]
[null,null,null,null,null,null,null,null,"Totalmente en Línea",null,null,0]
["IDENTIFICADOR","TRÁMITE","CANAL ATENCIÓN","PUNTUACIÓN",null,null,null,null,"No se completa totalmente en línea.",null,null,10]
["INMOBILIAR-006-01-02","Solicitud de venta de cuota de participación estatal sobre bienes inmuebles y muebles en sucesiones intestadas","No se completa totalmente en línea.",{"$f":"IF(ISBLANK(C5),\"\",IF(C5=\"Totalmente en línea\",0,IF(C5=\"Inicia en línea\",6,10)))","v":10}]
["INMOBILIAR-006-01-01","Venta de cuota de participación estatal sobre bienes inmuebles en sucesiones intestadas","No se completa totalmente en línea.",{"$f":"IF(ISBLANK(C6),\"\",IF(C6=\"Totalmente en línea\",0,IF(C6=\"Inicia en línea\",6,10)))","v":10}]
["INMOBILIAR-012-01-05","Uso de Grúa","No se completa totalmente en línea.",10]
["INMOBILIAR-011-02-01","Asignación de áreas deportivas","No se completa totalmente en línea.",10]
["INMOBILIAR-011-01-01","Reservación de áreas para eventos, deportes y recreación","No se completa totalmente en línea.",10]
["INMOBILIAR-012-01-04","Venta de hielo","No se completa totalmente en línea.",10]
["INMOBILIAR-012-01-02","Fondeo de embarcaciones","No se completa totalmente en línea.",10]
["INMOBILIAR-012-01-01","Uso de muelle nodriza o muelle flotante","No se completa totalmente en línea.",10]
["INMOBILIAR-012-01-03","Renta de espacios por metro cuadrado","No se completa totalmente en línea.",10]

{"sheet":"RESUMEN","index":16,"n_rows":12,"n_cols":25,"rows_kept":12,"cut":false,"hidden":false,"merged":[[1,0,2,0],[1,1,2,1],[1,2,2,2],[1,3,2,3],[1,4,2,4],[1,9,1,10],[1,11,1,12],[1,13,2,13],[0,2,0,6],[0,7,0,12],[1,5,2,5],[1,6,2,6],[1,7,1,8]]}
[null,null,"BÁSICOS",null,null,null,null,"ADICIONALES"]
["ID trámite","Nombre del trámite","Demanda","Quejas","Costo para administración","Tiempo de respuesta","Canal de atención","Necesidades ciudadanas",null,"Susceptibilidad a corrupción",null,"Volumen de devoluciones",null,"PUNTAJE TOTAL"]
[null,null,null,null,null,null,null,"Criterio","Puntuación","Criterio","Puntuación","Criterio","Puntuación",null,null,null,null,null,null,null,"demanda",0,3,6,10]
["INMOBILIAR-006-01-02","Solicitud de venta de cuota de participación estatal sobre bienes inmuebles y muebles en sucesiones intestadas",3,0,20,30,10,"NO",{"$f":"IF(H4=\"SI\",5,0)","v":0},"NO",{"$f":"IF(J4=\"SI\",10,0)","v":0},"NO",{"$f":"IF(L4=\"SI\",5,0)","v":0},{"$f":"SUM(C4:G4,I4,K4,M4)","v":63},null,null,null,null,null,null,"quejas",0,4,10]
["INMOBILIAR-006-01-01","Venta de cuota de participación estatal sobre bienes inmuebles en sucesiones intestadas",3,0,20,30,10,"NO",{"$f":"IF(H5=\"SI\",5,0)","v":0},"NO",{"$f":"IF(J5=\"SI\",10,0)","v":0},"NO",{"$f":"IF(L5=\"SI\",5,0)","v":0},{"$f":"SUM(C5:G5,I5,K5,M5)","v":63},null,null,null,null,null,null,"cpa",5,10,20]
["INMOBILIAR-012-01-05","Uso de Grúa",3,0,10,0,10,"NO",0,"NO",0,"NO",0,23,null,null,null,null,null,null,"tr",0,30]
["INMOBILIAR-011-02-01","Asignación de áreas deportivas",6,0,5,0,10,"NO",0,"NO",0,"NO",0,21,null,null,null,null,null,null,"ca",0,10]
["INMOBILIAR-011-01-01","Reservación de áreas para eventos, deportes y recreación",6,0,5,0,10,"NO",0,"NO",0,"NO",0,21,null,null,null,null,null,null,null,"SI","NO"]
["INMOBILIAR-012-01-04","Venta de hielo",6,0,5,0,10,"NO",0,"NO",0,"NO",0,21]
["INMOBILIAR-012-01-02","Fondeo de embarcaciones",10,0,10,0,10,"NO",0,"NO",0,"NO",0,30]
["INMOBILIAR-012-01-01","Uso de muelle nodriza o muelle flotante",10,0,10,0,10,"NO",0,"NO",0,"NO",0,30]
["INMOBILIAR-012-01-03","Renta de espacios por metro cuadrado",10,0,10,0,10,"NO",0,"NO",0,"NO",0,30]